Cogmind - Beta 13 @@@ ROGUE MODE // 2024.04.03 @ 21:48:44 Player: alphamind Result: Destroyed by G-47 Trooper with Particle Gun Performance ------------- Evolutions (0) 0 Regions Visited (1) 200 Robots Destroyed (28) 140 Value Destroyed (532) 532 Prototype IDs (0) 0 Alien Tech Used (0) 0 Bonus (0) 0 TOTAL SCORE: 872 Bonus ------- None Cogmind --------- Core Integrity 0/250 Matter 300/300 Energy 100/100 System Corruption 5% Temperature Cool (9) Movement Rolling (80) Location -10/Materials Parts ------- > --- POWER (1) -------- (None) > --- PROPULSION (2) --- Wheel > --- UTILITY (2) ------ (None) > --- WEAPON (2) ------- Hammer Mining Claw > --- INVENTORY (5) ---- Small Storage Unit Seismic Detector ECM Suite Peak State ------------ > --- POWER ------------ Light Ion Engine > --- PROPULSION ------- Wheel Wheel > --- UTILITY ---------- Improved Terrain Scanner Seismic Detector > --- WEAPON ----------- EM Pulse Gun Small Laser > --- INVENTORY -------- Wheel Wheel Wheel [Rating: 9] Favorites ----------- Power Light Ion Engine Engine Light Ion Engine Propulsion Light Treads Treads Light Treads Wheel Wheel Utility High-capacity Storage Unit Device Seismic Detector Storage High-capacity Storage Unit Weapon Grenade Launcher Energy Gun EM Pulse Gun Launcher Grenade Launcher Impact Weapon Hammer Slashing Weapon Mining Claw Build | -11 -10 ------- Run | Yrd Mat Slots Evolved . | . . Power . | . . Propulsion . | . . Utility . | . . Weapon . | . . Parts Attached 22 | 9 13 Power 2 | 2 . Engine 2 | 2 . Core . | . . Reactor . | . . Propulsion 5 | 2 3 Treads 2 | . 2 Leg . | . . Wheel 3 | 2 1 Hover . | . . Flight . | . . Utility 6 | 2 4 Device 4 | 2 2 Storage 2 | . 2 Processor . | . . Hackware . | . . Protection . | . . Artifact . | . . Weapon 9 | 3 6 Energy Gun 3 | 3 . Energy Cannon . | . . Ballistic Gun . | . . Ballistic Cannon . | . . Launcher 2 | . 2 Special Weapon . | . . Impact Weapon 2 | . 2 Slashing Weapon 2 | . 2 Piercing Weapon . | . . Special Melee Weapon . | . . Unidentified Prototypes . | . . Corrupted Parts 1 | 1 . System Corruption 1 | 1 . Parts Lost 6 | 2 4 Power 2 | 1 1 Propulsion 1 | . 1 Utility 1 | . 1 Weapon 2 | 1 1 Highest Loss Streak 3 | 1 3 To Critical Strikes . | . . Average Slot Usage (%) 88 | . 88 Engine 12 | . 12 Treads 19 | . 19 Wheel 7 | . 7 Device 8 | . 8 Storage 10 | . 10 Energy Gun 3 | . 3 Launcher 12 | . 12 Impact Weapon 11 | . 11 Slashing Weapon 1 | . 1 Naked Turns . | . . Heaviest Build 49 | 8 49 Greatest Support 40 | 20 40 Greatest Overweight (x) 1 | . 1 Average Overweight (x) . | . . Largest Inventory Capacity 20 | 5 20 Average Capacity 13 | 5 14 Most Carried 18 | 5 18 Average Carried 10 | 3 11 Final Capacity 5 | 5 5 Final Carried 4 | 4 3 Class Distribution -------------------- 100% | Mutant Dominant Class ---------------- Mutant | -10/Materials Resources | -11 -10 ----------- Run | Yrd Mat Matter Collected 543 | 270 273 Remotely . | . . Salvage Created 722 | 137 585 Parts 35 | 13 22 Haulers Intercepted 2 | . 2 Recyclers Shooed 1 | . 1 Parts Field Recycled . | . . Retrieved Matter . | . . Parts Self-Destructed . | . . Prevented . | . . Kills | -11 -10 ------- Run | Yrd Mat Combat Hostiles Destroyed 12 | 1 11 Melee 5 | . 5 Guns 1 | 1 . AOE 5 | . 5 Classes Destroyed 8 | 3 5 Worker 4 | 1 3 Builder 1 | . 1 Tunneler 4 | 4 . Hauler 2 | . 2 Recycler 1 | . 1 Operator 2 | . 2 Watcher 2 | . 2 Grunt 12 | 1 11 Best Kill Streak 5 | 3 5 Combat Bots Only 4 | 1 4 Max Kills in Single Turn 2 | 1 2 Gunslinging . | . . Exploded 2 | . 2 Melee 1 | . 1 Uniques/NPCs Destroyed . | . . Combat | -11 -10 -------- Run | Yrd Mat Hostile Shots Fired 93 | 9 84 Missed 20 | 1 19 Damage Taken 940 | 156 784 Core 264 | 11 253 Absorbed by Shields . | . . Core Remaining (%) 95 | 95 . Volleys Fired 22 | 11 11 Largest 2 | 2 1 Hottest 80 | 80 40 Shots Fired 34 | 22 12 Gun 24 | 22 2 Cannon . | . . Launcher 10 | . 10 Special . | . . Kinetic . | . . Thermal . | . . Explosive 10 | . 10 Electromagnetic 24 | 22 2 Robot Hit Streak 9 | 6 9 Robot Miss Streak 2 | 2 1 Penetration Max . | . . Secondary Targets . | . . Shots Hit Robots 51 | 14 37 Core Hits 25 | 7 18 Critical Kills 1 | . 1 Critical Parts Destroyed 4 | . 4 Critical Strikes 5 | . 5 Smash 5 | . 5 Melee Attacks 39 | . 39 Impact 33 | . 33 Slashing 6 | . 6 Piercing . | . . Sneak Attacks 5 | . 5 Combat Hostiles . | . . Follow-up Attacks . | . . Damage Inflicted 1824 | 316 1508 Guns 221 | 193 28 Cannons . | . . Explosions 668 | 123 545 Melee 935 | . 935 Ramming . | . . Kinetic . | . . Thermal 123 | 123 . Explosive 545 | . 545 Electromagnetic 221 | 193 28 Impact 862 | . 862 Slashing 73 | . 73 Piercing . | . . Highest Corruption 5 | 1 5 Average Corruption 4 | 1 4 Corruption Purged . | . . Corruption Blocked . | . . Effects 19 | . 19 Message Errors 2 | . 2 Matter Fused 5 | . 5 Heat Flow Errors 5 | . 5 Energy Discharges 3 | . 3 Data Loss (minor) 2 | . 2 Misfires 1 | . 1 Alerts 1 | . 1 Overload Shots . | . . Overflow Damage 336 | 16 320 Projectiles . | . . Explosions 32 | 16 16 Melee 304 | . 304 Knockbacks 6 | . 6 Impact 6 | . 6 Kinetic . | . . Secondary . | . . Self-Inflicted Damage 100 | 68 32 Shots 3 | 2 1 Rammed . | . . Targets Rammed . | . . Kicked . | . . Crushed . | . . Highest Temperature 269 | 130 269 Average Temperature 84 | 48 106 Received Heat Transfer 453 | 48 405 Siege Activations . | . . Robots Corrupted 1 | . 1 Combat Hostiles . | . . Parts Fried 16 | 2 14 Impact Corruptions 14 | . 14 Robots Melted . | . . Combat Hostiles . | . . Parts Melted . | . . Heat Transferred 250 | 250 . Parts Sabotaged . | . . Parts Stolen . | . . Parts Stripped . | . . Power Chain Reactions 3 | 3 . Alert | -11 -10 ------- Run | Yrd Mat Peak Influence 176 | 30 176 Initial 16 | . 16 Average 72 | 15 81 Maximum Alert Level . | . . Low Security (%) 100 | 100 100 Level 1 . | . . Level 2 . | . . Level 3 . | . . Level 4 . | . . Level 5 . | . . High Security . | . . Max Security . | . . Squads Dispatched 5 | . 5 Investigation 3 | . 3 Extermination . | . . Reinforcement 2 | . 2 Assault . | . . Garrison . | . . Intercept . | . . Searches Triggered . | . . Construction Impeded . | . . Haulers Reinforced . | . . Active Scanning Responses . | . . Cargo Convoy Interrupts . | . . Stealth | -11 -10 --------- Run | Yrd Mat Distress Signals . | . . Communications Jammed . | . . Distress Signals . | . . Times Spotted 17 | 1 16 Peak Tracking Total 4 | 1 4 Tactical Retreats . | . . Traps | -11 -10 ------- Run | Yrd Mat Traps Triggered 4 | . 4 Indirectly . | . . Trap Hack Attempts . | . . Triggered . | . . Disarmed . | . . Reprogrammed . | . . Reused . | . . Traps Extracted . | . . Installed . | . . Triggered . | . . Machines | -11 -10 ---------- Run | Yrd Mat Machines Disabled . | . . Max in Single Turn . | . . Machines Repaired . | . . Machines Dismantled . | . . Machines Sabotaged . | . . Overloaded Fab Kills . | . . Hacking | -11 -10 --------- Run | Yrd Mat Machines Accessed 4 | . 4 Terminals 2 | . 2 Fabricators . | . . Repair Stations . | . . Recycling Units 2 | . 2 Scanalyzers . | . . Garrison Access . | . . Total Hacks 10 | . 10 Successful 6 | . 6 Failed 4 | . 4 Catastrophic 1 | . 1 Database Lockouts . | . . Manual . | . . Terminals 3 | . 3 Fabricators . | . . Repair Stations . | . . Recycling Units 7 | . 7 Scanalyzers . | . . Garrison Access . | . . Terminal Hacks 2 | . 2 Record 1 | . 1 Emergency Access Points 1 | . 1 Fabricator Hacks . | . . Repair Station Hacks . | . . Recycling Unit Hacks 4 | . 4 Report Inventory 2 | . 2 Retrieve Matter 1 | . 1 Retrieve Components 1 | . 1 Scanalyzer . | . . Garrison Access Hacks . | . . Unauthorized Hacks . | . . Terminals . | . . Fabricators . | . . Repair Stations . | . . Recycling Units . | . . Scanalyzers . | . . Garrison Access . | . . Data Cores Recovered . | . . Used . | . . Hacking Detections 3 | . 3 Full Trace Events 1 | . 1 Feedback Events . | . . Feedback Blocked . | . . Robot Schematics Acquired . | . . Robots Built . | . . Authchips . | . . Time . | . . Total Robot Build Rating . | . . Part Schematics Acquired . | . . Parts Built . | . . Authchips . | . . Time . | . . Total Part Build Rating . | . . Parts Repaired . | . . Time . | . . Parts Recycled . | . . Recycled Matter . | . . Retrieved Matter . | . . Retrieved Components 2 | . 2 Parts Scanalyzed . | . . Part Schematics Acquired . | . . Parts Damaged . | . . Bothacking | -11 -10 ------------ Run | Yrd Mat Used RIF Installer . | . . Robots Hacked . | . . Non-combat . | . . Combat . | . . Robot Hacks Applied . | . . Relay Couplers Released . | . . Fabnet Peak Effective % . | . . Robots Rewired . | . . Allies Hacked . | . . Hacks Repelled . | . . Allies | -11 -10 -------- Run | Yrd Mat Total Allies . | . . Largest Group . | . . Highest-Rated Group . | . . Highest-Rated Ally . | . . Total Orders . | . . Ally Attacks . | . . Total Damage . | . . Kills . | . . Allies Corrupted . | . . Allies Melted . | . . Intel | -11 -10 ------- Run | Yrd Mat Robot Analysis Total . | . . Derelict Logs Recovered . | . . Drone Launches . | . . Drone Recoveries . | . . Exploration | -11 -10 ------------- Run | Yrd Mat Turns Passed 1029 | 147 882 Spaces Moved 591 | 131 460 Core 43 | 43 . Treads 230 | . 230 Legs . | . . Wheels 318 | 88 230 Hover . | . . Flight . | . . Fastest Speed 50 | 50 80 Average Speed 134 | 70 152 Slowest Speed 240 | 80 240 Overloaded Moves . | . . Propulsion Burnouts . | . . Robots Hopped . | . . Cave-ins Triggered . | . . Exploration Rate (%) 43 | 6 81 Regions Visited 1 Branch Regions . Pre-discovered Areas . | . . Known Exits Taken . | . . Unknown Exits Taken 1 | 1 . Scrap Searched . | . . Spaces Dug . | . . Terrain Destroyed 83 | 7 76 Melee . | . . Projectile . | . . AOE 83 | 7 76 Terrain Rammed . | . . Walls Destroyed . | . . Machines Disabled . | . . Actions | -11 -10 --------- Run | Yrd Mat Total 735 | 163 572 Wait 11 | . 11 Move 590 | 130 460 Hop . | . . Pick Up 35 | 13 22 Fast Attach . | . . Attach 22 | 9 13 Detach 7 | . 7 Swap . | . . Drop 10 | . 10 Fire 22 | 11 11 Melee 38 | . 38 Ram . | . . Kick . | . . Crush . | . . Escape Stasis . | . . Rewire . | . . Trap . | . . Miscellaneous . | . . Route ------- -11/Scrapyard -10/Materials (discovered 5 exits: [*Mat x3] / [*Min x2]) History --------- Turn | Location | Event 2 | -11/Scrapyard | Met Revision 17 50 | -11/Scrapyard | Discovered new exit (range 8) 148 | -11/Scrapyard | Entered Materials 225 | -10/Materials | Discovered new exit (range 16) 262 | -10/Materials | Discovered new exit (range 12) 313 | -10/Materials | Build established: Mutant 337 | -10/Materials | Discovered new exit (range 9) 692 | -10/Materials | Discovered new exit (range 12) 909 | -10/Materials | Discovered new exit (range 16) 983 | -10/Materials | Core integrity fell below 50% 1004 | -10/Materials | Lost 3 parts (1p1n1w) 1009 | -10/Materials | Core integrity fell below 20% 1030 | -10/Materials | Destroyed by G-47 Trooper with Particle Gun Last Messages --------------- K-01 Serf collects debris. U-05 Engineer builds a Wall. G-34 Mercenary IFF system glitched. K-01 Serf collects debris. U-05 Engineer builds a Wall. K-01 Serf collects debris. U-05 Engineer builds a Wall. G-34 Mercenary destroyed. K-01 Serf collects debris. G-34 Mercenary destroyed. K-01 Serf collects debris. Acquired 20 matter. K-01 Serf collects debris. U-05 Engineer lays Concrete. U-05 Engineer builds a Door. K-01 Serf collects debris. G-34 Mercenary suffers critical hit (Smash). G-34 Mercenary destroyed. K-01 Serf collects debris. U-05 Engineer builds a Wall. Map ----- +----------------------------------------------------+ | ????# #=""" #????????????# # + """ # | | ##### # """ #?????????##### ### # # """"" ? | | + """ #????#????# # # """"" # | | # #?????????# # # """"" # | | ### #########?????????# # # """ # | | #?# #???????????#?????# + # # | | #?# #??#??????????????# ! # + # | | #?# #?????????????????# = # # # | | #?# #?????????????????# = # # "T" # | | #?# #?????????????????# # # """ # | | #?# #????????????????############ ######### | | #??+?????????????????# """ = ## ## # | | #?????????????#??????# """ ## ## # | | #????????????????????# """ # # # | | ????????????######??# # # # | | ????????????# #??# + + # | | T ????????????# #??# * # # # | | ? ??"??? ???+?+ #??# # # # | | ????????????????# #??# ####### # | | ????????????????# #########+##/#?????# # | | ????????????????# " # "T" ## #?????# # | | ????????????????# T # ## ####### # | | ? ????????####### "![#%] = ## + # | | #??????# #=[]]#!*! ## # # | | #??????# ##+#%]%#/##### t ######## | | ######## []*u=//=k@gu*t % ##?????? | | ##*%!/########+######## ##?????? | | ########### ##!!%!##??# = % #####+##?????? | | ??????????## ###%||=##??## T + #?????? | | ???????????# ###+##+##???# # #?????? | | ???????????+ # = *!#???# # #?????? | | ??"????????# # #???# # ######? | | ???????????# # #???# # ## #? | | ???????????# #% #???######+# + #? | | ???????????+ +! #???????##*#= ## #? | | ???????????# # """ #???????# # ## #? | | ???????????# # """ #???????## # ## #? | | ???????????# # """ #???????# %# ## #? | | ???#?????? ################# # ## #? | | ????????? #???????# # ## #? | | ???????? #???????# """ # # ## #? | | ??????? """ #???????# """ # #+####### #? | | ??????# """ ????????# """ [ # #? | | ??????# """ ????????# + #? | | ??????+ ??? ????????# """ # #? | | ??????# ???? ????????# """ ########+## < #? | | ???????????? < ????????# """ ## !!! # #? | | ???????????? ????????# ## !!! #####? | | ????????????###????????########### !! #????? | | ?????????????????????????????????# #????? | +----------------------------------------------------+ Best States ------------- Heat Dissipation 25 Energy Generation 10 Energy Capacity 125 Matter Stores 300 Matter Capacity 300 Sight Range 16 Terrain Scan Range 16 Terrain Scan Density 10 Evasion (%) 50 Recoil Reduction 2 Item Schematics ----------------- None Robot Schematics ------------------ None Fabricated ------------ Nothing Alien Tech Used ----------------- None Achievements -------------- Maybe Next Time I'll Detach My Launcher Power Corrupts Challenges ------------ None Game ------ Seed VortexDecoyAutohacker Manual? 0 Play Time 00:22:37 Cumulative 3.8 hours Start 2024.04.03 @ 20:26:39 End 2024.04.03 @ 21:48:44 Sessions 3 Manual Loads 0 Difficulty Rogue Special Mode None Game No. 4 Rogue 4 Adventurer 0 Explorer 0 Win Type - Total 0 Types 0/0/0/0/0/0/0/0/0 Lore% 0 Gallery% 5 Achievement% 6 Wizard Run 0 Options --------- Layout 1 ASCII 0 Keyboard 1 Movement Arrows Keybinds 0 Fullscreen 1 Font 24/Smallcaps Map View 50x35 Zoom Use 0% Tactical HUD 0 Map Filters NONE Filters NONE Steam 1 RUN: cd3c5456-820c-4fe3-b380-7b5944f03b9f